bitfinex-derivatives/quotes_BNBF0:USTF0_20251027
["timestamp","ask_amount","ask_price","bid_price","bid_amount"]
[1761541603679,2.15100723,1146.7,1144.5,1.587]
[1761541604178,2.15100723,1146.5,1144.5,1.587]
[1761541604776,2.30289967,1147.1,1144.5,1.587]
[1761541605775,2.15100723,1147.0,1144.5,1.587]
[1761541606681,2.30289967,1147.1,1144.5,1.587]
[1761541607182,2.15100723,1147.0,1144.5,1.587]
[1761541609382,0.15189244,1147.1,1144.5,1.587]
[1761541616087,2.9994637,1147.0,1144.5,1.587]
[1761541616284,2.15100723,1146.6,1144.5,1.587]
[1761541617290,0.15189244,1147.1,1144.5,1.587]
[1761541618788,2.15100723,1146.7,1144.5,1.587]
[1761541619486,2.15100723,1146.8,1144.5,1.587]
[1761541621392,2.15100723,1147.0,1144.5,1.587]
[1761541623294,0.15189244,1147.1,1144.5,1.587]
[1761541623892,2.15100723,1147.4,1144.5,1.587]
[1761541624096,2.15100723,1148.7,1144.7,0.65029325]
[1761541624294,0.15189111,1147.2,1144.8,0.55325963]
[1761541624492,2.15100723,1148.7,1144.9,0.55325963]
[1761541624696,0.15184273,1147.2,1145.0,0.55325963]
[1761541624893,0.15184273,1147.2,1145.1,0.55325963]
[1761541625096,0.15184273,1147.2,1144.5,1.587]
[1761541625097,2.15100723,1148.7,1144.5,1.587]
[1761541625296,0.15183412,1147.2,1144.6,0.55342057]
[1761541625497,2.15100723,1148.8,1144.7,0.55342057]
[1761541625694,0.15184737,1147.2,1144.8,0.55342057]
[1761541625894,0.15184737,1147.2,1144.9,0.55342057]
[1761541626097,2.15100723,1148.8,1145.0,0.55342057]
[1761541626394,0.15183809,1147.2,1145.1,0.55342057]
[1761541626697,2.15100723,1148.7,1144.5,1.587]
[1761541626895,0.15183478,1147.2,1144.6,0.55339797]
[1761541627097,2.15100723,1148.7,1144.7,0.55339797]
[1761541627294,0.15185134,1147.2,1144.8,0.55339797]
[1761541627594,2.15100723,1148.6,1144.9,0.55339797]
[1761541627798,0.15184803,1147.2,1145.0,0.55339797]
[1761541627992,0.15184803,1147.2,1144.5,1.587]
[1761541628196,2.15100723,1148.6,1144.6,0.55322991]
[1761541628393,0.15186195,1147.1,1144.7,0.55322991]
[1761541628593,2.15100723,1148.5,1144.8,0.55322991]
[1761541628793,2.15100723,1148.6,1144.9,0.55322991]
[1761541628999,0.15185863,1147.1,1145.0,0.55322991]
[1761541629198,2.15100723,1148.6,1144.5,1.587]
[1761541629399,2.15100723,1148.8,1144.6,0.55339948]
[1761541629695,2.15100723,1148.8,1144.7,0.55339948]
[1761541629893,2.15100723,1148.8,1144.5,1.587]
[1761541629894,2.15100723,1148.7,1144.8,0.55339948]
[1761541630098,2.15100723,1148.7,1144.9,0.55339948]
[1761541630298,0.15183445,1147.8,1145.0,0.55339948]
[1761541630497,0.15183445,1147.8,1145.1,0.55339948]
[1761541630696,2.15100723,1147.6,1145.2,0.55303601]
[1761541630895,2.15100723,1147.6,1144.8,0.65029325]
[1761541631199,2.15100723,1147.7,1144.9,0.55308929]
[1761541631396,2.15100723,1147.7,1145.0,0.55308929]
[1761541631597,2.15100723,1147.7,1145.1,0.55308929]
[1761541631796,0.15183445,1147.8,1145.2,0.55308929]
[1761541632097,0.15183445,1147.8,1145.3,0.55308929]
[1761541632295,0.15183445,1147.8,1145.4,0.55308929]
[1761541632498,0.15183445,1147.8,1145.5,0.55308929]
[1761541632700,0.15183445,1147.8,1145.6,0.55308929]
[1761541632901,0.15183445,1147.8,1145.0,0.65029325]
[1761541633101,0.15183445,1147.8,1145.1,0.55196661]
[1761541633302,0.15183445,1147.8,1145.2,0.55196661]
[1761541633501,0.15183445,1147.8,1145.3,0.55196661]
[1761541633802,0.15183445,1147.8,1145.4,0.55196661]
[1761541633999,0.15183445,1147.8,1145.5,0.55196661]
[1761541634300,0.15183445,1147.8,1145.1,0.65029325]
[1761541634499,0.15183445,1147.8,1145.2,0.55115619]
[1761541634702,0.15183445,1147.8,1145.3,0.55115619]
[1761541634901,0.15183445,1147.8,1145.4,0.55115619]
[1761541635100,0.15183445,1147.8,1145.5,0.55115619]
[1761541635304,0.15183445,1147.8,1145.2,0.65029325]
[1761541635604,0.15183445,1147.8,1145.3,0.55073204]
[1761541635904,0.15183445,1147.8,1145.4,0.55073204]
[1761541636104,0.15183445,1147.8,1145.5,0.55073204]
[1761541636400,0.15183445,1147.8,1145.2,0.65029325]
[1761541636601,0.15183445,1147.8,1145.3,0.55034135]
[1761541636805,0.15183445,1147.8,1145.4,0.55034135]
[1761541637007,0.15183445,1147.8,1145.5,0.55034135]
[1761541637206,0.15183445,1147.8,1145.2,0.65029325]
[1761541637405,0.15183445,1147.8,1145.3,0.54999431]
[1761541637604,0.15183445,1147.8,1145.4,0.54999431]
[1761541637804,0.15183445,1147.8,1145.5,0.54999431]
[1761541638003,0.15183445,1147.8,1145.6,0.54999431]
[1761541638202,0.15183445,1147.8,1145.1,0.65029325]
[1761541638406,0.15183445,1147.8,1145.2,0.54962892]
[1761541638706,0.15183445,1147.8,1145.3,0.54962892]
[1761541638904,0.15183445,1147.8,1145.4,0.54962892]
[1761541639205,0.15183445,1147.8,1145.5,0.54962892]
[1761541639405,0.15183445,1147.8,1145.6,0.54962892]
[1761541639708,0.15183445,1147.8,1145.1,0.65029325]
[1761541639904,0.15183445,1147.8,1145.2,0.54932389]
[1761541640104,0.15183445,1147.8,1145.3,0.54932389]
[1761541640309,0.15183445,1147.8,1145.4,0.54932389]
[1761541640605,0.15183445,1147.8,1145.1,0.64302723]
[1761541640606,0.15183445,1147.8,1145.5,0.54932389]
[1761541640808,0.15183445,1147.8,1145.6,0.54932389]
[1761541641008,0.15183445,1147.8,1145.7,0.54932389]
[1761541641209,0.15183445,1147.8,1145.2,0.64302723]
[1761541641410,0.15183445,1147.8,1145.3,0.54909379]
[1761541641705,0.15183445,1147.8,1145.4,0.54909379]
[1761541641910,0.15183445,1147.8,1145.5,0.54909379]
[1761541642210,0.15183445,1147.8,1145.6,0.54909379]
[1761541642404,0.15183445,1147.8,1145.7,1.222]
[1761541672643,2.30284168,1147.8,1145.7,1.222]
[1761541673145,0.15183445,1147.8,1145.7,1.222]
[1761541681246,2.15100723,1147.5,1145.7,1.222]
[1761541682247,2.15100723,1147.7,1145.7,1.222]
[1761541682652,2.30284168,1147.8,1145.7,1.222]
[1761541683252,2.15100723,1147.5,1145.7,1.222]
[1761541683853,2.15100723,1147.7,1145.7,1.222]
[1761541684956,2.15100723,1147.6,1145.7,1.222]
[1761541685652,0.15183445,1147.8,1145.7,1.222]
[1761541694764,2.30284168,1147.8,1145.7,1.222]
[1761541695762,0.15183445,1147.8,1145.7,1.222]
[1761541696262,2.30284168,1147.8,1145.7,1.222]
[1761541696766,0.15183445,1147.8,1145.7,1.222]
[1761541697368,2.15100723,1147.6,1145.7,1.222]
[1761541698570,2.15100723,1147.6,1144.1,0.15179173]
[1761541700277,2.15100723,1147.6,1144.2,0.55348074]
[1761541700471,0.15183445,1147.8,1144.1,0.15179173]
[1761541700668,0.15183445,1147.8,1144.2,0.55339403]
[1761541700872,0.15183445,1147.8,1144.1,0.15179173]
[1761541701070,0.15183445,1147.8,1144.2,0.55339424]
[1761541701270,0.15183445,1147.8,1144.1,0.15179173]
[1761541701471,0.15183445,1147.8,1144.2,0.55339983]
[1761541701766,0.15183445,1147.8,1144.3,1.276]
[1761541705282,2.15100723,1147.7,1144.3,1.276]
[1761541705676,2.30284168,1147.8,1144.3,1.276]
[1761541706175,2.15100723,1147.7,1144.3,1.276]
[1761541706380,2.15100723,1147.7,1144.4,0.55384782]
[1761541706676,0.15183445,1147.8,1144.3,1.276]
[1761541706881,0.15183445,1147.8,1144.4,0.55383881]
[1761541707080,2.15100723,1147.4,1144.5,0.55380452]
[1761541707380,2.15100723,1147.4,1144.6,0.55380452]
[1761541707580,2.15100723,1147.7,1144.3,1.276]
[1761541707878,2.15100723,1147.7,1144.4,0.55397004]
[1761541708079,2.15100723,1147.7,1144.5,0.55397004]
[1761541708381,2.30284168,1147.8,1144.6,0.55397004]
[1761541708583,2.30284168,1147.8,1144.3,1.276]
[1761541708782,2.30284168,1147.8,1144.4,0.55424094]
[1761541708977,2.30284168,1147.8,1144.5,0.55424094]
[1761541709279,2.30284168,1147.8,1144.6,0.55424094]
[1761541709477,2.30284168,1147.8,1144.3,1.276]
[1761541709782,2.30284168,1147.8,1144.4,0.55434714]
[1761541709979,2.30284168,1147.8,1144.5,0.55434714]
[1761541710281,2.30284168,1147.8,1144.6,0.55434714]
[1761541710481,2.30284168,1147.8,1144.7,0.55434714]
[1761541710681,0.15183445,1147.8,1144.3,1.276]
[1761541710880,0.15183445,1147.8,1144.4,0.55441376]
[1761541711083,0.15183445,1147.8,1144.5,0.55441376]
[1761541711384,0.15183445,1147.8,1144.6,0.55441376]
[1761541711584,0.15183445,1147.8,1144.7,0.55441376]
[1761541711784,0.15183445,1147.8,1144.8,0.55441376]
[1761541711980,0.15183445,1147.8,1144.3,1.91902723]
[1761541712183,0.15183445,1147.8,1144.4,0.55456116]
[1761541712381,0.15183445,1147.8,1144.5,0.55456116]
[1761541712682,0.15183445,1147.8,1144.6,0.55456116]
[1761541712885,0.15183445,1147.8,1144.7,0.55456116]
[1761541713085,0.15183445,1147.8,1144.8,0.55460287]
[1761541713285,2.30284168,1147.8,1144.4,0.64302723]
[1761541713486,2.30284168,1147.8,1144.5,0.55464539]
[1761541713684,2.30284168,1147.8,1144.6,0.55464539]
[1761541713882,2.15100723,1147.7,1144.7,0.55464539]
[1761541714086,2.15100723,1147.7,1144.8,0.55464539]
[1761541714287,2.15100723,1147.7,1144.4,0.64302723]
[1761541714487,2.15100723,1147.7,1144.5,0.55472148]
[1761541714688,2.15100723,1147.7,1144.6,0.55472148]
[1761541714984,2.15100723,1147.7,1144.7,0.55472148]
[1761541715286,2.15100723,1147.7,1144.8,0.55472148]
[1761541715485,2.15100723,1147.7,1144.4,0.64302723]
[1761541715687,2.15100723,1147.7,1144.5,0.55480129]
[1761541715889,2.15100723,1147.7,1144.6,0.55480129]
[1761541716093,2.15100723,1147.7,1144.7,0.55480129]
[1761541716292,2.15100723,1147.7,1144.8,0.55480129]
[1761541716589,2.15100723,1147.7,1144.4,0.64302723]
[1761541716889,2.15100723,1147.7,1144.5,0.55488427]
[1761541717089,0.15183445,1147.8,1144.6,0.55488427]
[1761541717293,0.15183445,1147.8,1144.7,0.55488427]
[1761541717490,0.15183445,1147.8,1144.3,1.276]
[1761541717491,0.15183445,1147.8,1144.8,0.55488427]
[1761541717690,0.15183445,1147.8,1144.9,0.55488427]
[1761541717893,0.15183445,1147.8,1145.0,0.55488427]
[1761541718093,0.15183445,1147.8,1144.5,0.64302723]
[1761541718294,0.15183445,1147.8,1144.6,0.55491121]
[1761541718495,0.15183445,1147.8,1144.7,0.55491121]
[1761541718693,0.15183445,1147.8,1144.8,0.55491121]
[1761541718893,0.15183445,1147.8,1144.9,0.55491121]
[1761541719092,0.15183445,1147.8,1145.0,0.55491121]
[1761541719295,0.15183445,1147.8,1144.5,0.64302723]
[1761541719496,0.15183445,1147.8,1144.6,0.55497362]
[1761541719795,0.15183445,1147.8,1144.7,0.55497362]
[1761541719994,0.15183445,1147.8,1144.8,0.55497362]
[1761541720192,0.15183445,1147.8,1144.9,0.55497362]
[1761541720396,0.15183445,1147.8,1145.0,0.55497362]
[1761541720595,0.15183445,1147.8,1145.1,0.55497362]
[1761541720796,0.15183445,1147.8,1145.2,0.55497362]
[1761541720996,0.15183445,1147.8,1145.3,0.55497362]
[1761541721194,0.15183445,1147.8,1145.4,0.55497362]
[1761541721397,0.15183445,1147.8,1144.9,0.64302723]
[1761541721597,0.15183445,1147.8,1145.0,0.55473901]
[1761541721794,0.15183445,1147.8,1145.1,0.55473901]
[1761541721997,0.15183445,1147.8,1145.2,0.55473901]
[1761541722194,0.15183445,1147.8,1145.3,0.55473901]
[1761541722398,0.15183445,1147.8,1145.4,0.55473901]
[1761541722598,0.15183445,1147.8,1144.8,0.64302723]
[1761541722798,0.15183445,1147.8,1144.9,0.55469387]
[1761541722998,0.15183445,1147.8,1145.0,0.55469387]
[1761541723196,0.15183445,1147.8,1145.1,0.55469387]
[1761541723397,0.15183445,1147.8,1145.2,0.55469387]
[1761541723598,0.15183445,1147.8,1145.3,0.55469387]
[1761541723799,0.15183445,1147.8,1145.4,0.55469387]
[1761541724096,0.15183445,1147.8,1144.8,0.64302723]
[1761541724296,0.15183445,1147.8,1144.9,0.55469799]
[1761541724498,0.15183445,1147.8,1145.0,0.55469799]
[1761541724699,0.15183445,1147.8,1145.1,0.55469799]
[1761541724899,0.15183445,1147.8,1145.2,0.55469799]
[1761541725096,0.15183445,1147.8,1145.3,0.55469799]
[1761541725396,0.15183445,1147.8,1145.4,0.55469799]
[1761541725601,0.15183445,1147.8,1144.8,0.64302723]
[1761541725799,0.15183445,1147.8,1144.9,0.55457441]
[1761541726002,0.15183445,1147.8,1145.0,0.55457441]
[1761541726301,0.15183445,1147.8,1145.1,0.55457441]
[1761541726501,0.15183445,1147.8,1145.2,0.55457441]
[1761541726801,0.15183445,1147.8,1145.3,0.55457441]
[1761541727002,0.15183445,1147.8,1145.4,0.55457441]
[1761541727202,0.15183445,1147.8,1144.8,0.64302723]
[1761541727402,0.15183445,1147.8,1144.9,0.55441163]
[1761541727602,0.15183445,1147.8,1145.0,0.55441163]
[1761541727802,0.15183445,1147.8,1145.1,0.55441163]
[1761541727997,0.15183445,1147.8,1145.2,0.55441163]
[1761541728298,0.15183445,1147.8,1145.3,0.55441163]
[1761541728503,0.15183445,1147.8,1144.9,0.64302723]
[1761541728702,0.15183445,1147.8,1145.0,0.55424013]
[1761541728901,0.15183445,1147.8,1145.1,0.55424013]
[1761541729104,0.15183445,1147.8,1145.2,0.55424013]
[1761541729298,0.15183445,1147.8,1144.9,0.64302723]
[1761541729299,0.15183445,1147.8,1145.3,0.55424013]
[1761541729504,0.15183445,1147.8,1145.4,0.55424013]
[1761541729705,0.15183445,1147.8,1145.5,0.55424013]
[1761541729905,0.15183445,1147.8,1145.6,0.55424013]
[1761541730101,0.15183445,1147.8,1145.1,0.64302723]
[1761541730404,0.15183445,1147.8,1145.2,0.55403307]
[1761541730602,0.15183445,1147.8,1145.3,0.55403307]
[1761541730801,0.15183445,1147.8,1145.4,0.55403307]
[1761541731101,0.15183445,1147.8,1145.5,0.55403307]
[1761541731301,0.15183445,1147.8,1145.6,0.55403307]
[1761541731501,0.15183445,1147.8,1145.7,0.55403307]
[1761541731702,0.15183445,1147.8,1145.1,0.64302723]
[1761541731901,0.15183445,1147.8,1145.2,0.55370009]
[1761541732105,0.15183445,1147.8,1145.3,0.55370009]
[1761541732405,0.15183445,1147.8,1145.4,0.55370009]
[1761541732602,0.15183445,1147.8,1145.5,0.55370009]
[1761541732802,0.15183445,1147.8,1145.6,0.55370009]
[1761541733005,0.15183445,1147.8,1145.7,0.55370009]
[1761541733213,0.15183445,1147.8,1145.1,0.64302723]
[1761541733408,0.15183445,1147.8,1145.2,0.55346725]
[1761541733703,0.15183445,1147.8,1145.3,0.55346725]
[1761541733907,0.15183445,1147.8,1145.4,0.55346725]
[1761541734208,0.15183445,1147.8,1145.5,0.55346725]
[1761541734409,0.15183445,1147.8,1145.6,0.55346725]
[1761541734607,0.15183445,1147.8,1145.7,0.55346725]
[1761541734908,0.15183445,1147.8,1145.2,0.64302723]
[1761541735104,0.15183445,1147.8,1145.3,0.55334642]
[1761541735304,0.15183445,1147.8,1145.4,0.55334642]
[1761541735505,0.15183445,1147.8,1145.5,0.55334642]
[1761541735806,0.15183445,1147.8,1145.6,0.55334642]
[1761541736005,0.15183445,1147.8,1145.7,0.55334642]
[1761541736210,0.15183445,1147.8,1145.3,0.64302723]
[1761541736410,0.15183445,1147.8,1145.4,0.55329832]
[1761541736607,0.15183445,1147.8,1145.5,0.55329832]
[1761541736812,0.15183445,1147.8,1145.6,0.55329832]
[1761541737113,0.15183445,1147.8,1145.7,0.55329832]
[1761541737311,0.15183445,1147.8,1145.8,0.55329832]
[1761541737509,0.15183445,1147.8,1145.3,0.64302723]
[1761541737708,0.15183445,1147.8,1145.4,0.55296804]
[1761541738011,0.15183445,1147.8,1145.5,0.55296804]
[1761541738218,0.15183445,1147.8,1145.6,0.55296804]
[1761541738508,0.15183445,1147.8,1145.7,0.55296804]
[1761541738708,0.15183445,1147.8,1145.8,0.55296804]
[1761541739012,0.15183445,1147.8,1145.3,0.64302723]
[1761541739209,0.15183445,1147.8,1145.4,0.55274078]
[1761541739510,0.15183445,1147.8,1145.5,0.55274078]
[1761541739708,0.15183445,1147.8,1145.6,0.55274078]
[1761541739915,0.15183445,1147.8,1145.7,0.55274078]
[1761541740115,0.15183445,1147.8,1145.8,0.55274078]
[1761541740411,0.15183445,1147.8,1145.3,0.64302723]
[1761541740710,0.15183445,1147.8,1145.4,0.55263348]
[1761541740910,0.15183445,1147.8,1145.5,0.55263348]
[1761541741113,0.15183445,1147.8,1145.6,0.55263348]
[1761541741312,0.15183445,1147.8,1145.7,0.55263348]
[1761541741511,0.15183445,1147.8,1145.8,0.55263348]
[1761541741711,0.15183445,1147.8,1145.3,0.64302723]
[1761541741917,0.15183445,1147.8,1145.4,0.55248018]
[1761541742214,0.15183445,1147.8,1145.5,0.55248018]
[1761541742416,0.15183445,1147.8,1145.6,0.55248018]
[1761541742615,0.15183445,1147.8,1145.7,0.55248018]
[1761541742916,0.15183445,1147.8,1145.8,0.55248018]
[1761541743113,0.15183445,1147.8,1145.2,0.64302723]
[1761541743413,0.15183445,1147.8,1145.3,0.55226732]
[1761541743611,0.15183445,1147.8,1145.4,0.55226732]
[1761541743914,0.15183445,1147.8,1145.5,0.55226732]
[1761541744114,0.15183445,1147.8,1145.6,0.55226732]
[1761541744313,0.15183445,1147.8,1145.7,0.55226732]
[1761541744514,0.15183445,1147.8,1145.2,0.64302723]
[1761541744715,0.15183445,1147.8,1145.3,0.55214019]
[1761541745014,0.15183445,1147.8,1145.4,0.55214019]
[1761541745217,0.15183445,1147.8,1145.5,0.55214019]
[1761541745412,0.15183445,1147.8,1145.6,0.55214019]
[1761541745613,0.15183445,1147.8,1145.7,0.55214019]
[1761541745818,0.15183445,1147.8,1145.1,0.64302723]
[1761541746017,0.15183445,1147.8,1145.2,0.55204543]
[1761541746216,0.15183445,1147.8,1145.3,0.55204543]
[1761541746414,0.15183445,1147.8,1145.4,0.55204543]
[1761541746616,0.15183445,1147.8,1145.5,0.55204543]
[1761541746914,0.15183445,1147.8,1145.6,0.55204543]
[1761541747118,0.15183445,1147.8,1145.7,0.55204543]
[1761541747419,0.15183445,1147.8,1145.1,0.64302723]
[1761541747614,0.15183445,1147.8,1145.2,0.55187214]
[1761541747815,0.15183445,1147.8,1145.3,0.55187214]
[1761541748015,0.15183445,1147.8,1145.4,0.55187214]
[1761541748227,0.15183445,1147.8,1145.5,0.55187214]
[1761541748418,0.15183445,1147.8,1145.6,0.55187214]
[1761541748617,0.15183445,1147.8,1145.7,0.55187214]
[1761541748824,0.15183445,1147.8,1145.1,0.64302723]
[1761541749017,0.15183445,1147.8,1145.2,0.55178895]
[1761541749219,0.15183445,1147.8,1145.3,0.55178895]
[1761541749417,0.15183445,1147.8,1145.4,0.55178895]
[1761541749616,0.15183445,1147.8,1145.5,0.55178895]
[1761541749822,0.15183445,1147.8,1145.6,0.55178895]
[1761541750020,0.15183445,1147.8,1145.0,0.64302723]
[1761541750223,0.15183445,1147.8,1145.1,0.55178865]
[1761541750423,0.15183445,1147.8,1145.2,0.55178865]
[1761541750623,0.15183445,1147.8,1145.3,0.55178865]
[1761541750821,0.15183445,1147.8,1145.4,0.55178865]
[1761541751020,0.15183445,1147.8,1145.5,0.55178865]
[1761541751220,0.15183445,1147.8,1145.6,0.55178865]
[1761541751419,0.15183445,1147.8,1145.1,0.64302723]
[1761541751622,0.15183445,1147.8,1145.2,0.55167835]
[1761541751820,0.15183445,1147.8,1145.3,0.55167835]
[1761541752024,0.15183445,1147.8,1145.4,0.55167835]
[1761541752324,0.15183445,1147.8,1145.5,0.55167835]
[1761541752524,0.15183445,1147.8,1145.6,0.55167835]
[1761541752724,0.15183445,1147.8,1145.1,0.64302723]
[1761541752922,0.15183445,1147.8,1145.2,0.55167249]
[1761541753122,0.15183445,1147.8,1145.3,0.55167249]
[1761541753323,0.15183445,1147.8,1145.4,0.55167249]
[1761541753633,0.15183445,1147.8,1145.5,0.55167249]
[1761541753922,0.15183445,1147.8,1145.6,0.55167249]
[1761541754127,0.15183445,1147.8,1145.1,0.64302723]
[1761541754328,0.15183445,1147.8,1145.2,0.55177928]
[1761541754535,0.15183445,1147.8,1145.3,0.55177928]
[1761541754733,0.15183445,1147.8,1145.4,0.55177928]
[1761541754934,0.15183445,1147.8,1145.0,0.64302723]
[1761541755137,0.15183445,1147.8,1145.1,0.55194872]
[1761541755335,0.15183445,1147.8,1145.2,0.55194872]
[1761541755637,0.15183445,1147.8,1145.3,0.55194872]
[1761541755933,0.15183445,1147.8,1145.4,0.55194872]
[1761541756138,0.15183445,1147.8,1145.0,0.64302723]
[1761541756434,0.15183445,1147.8,1145.1,0.5521624]
[1761541756643,0.15183445,1147.8,1145.2,0.5521624]
[1761541756837,0.15183445,1147.8,1145.3,0.5521624]
[1761541757134,0.15183445,1147.8,1145.4,0.5521624]
[1761541757338,0.15183445,1147.8,1144.9,0.64302723]
[1761541757538,0.15183445,1147.8,1145.0,0.55255133]
[1761541757737,0.15183445,1147.8,1145.1,0.55255133]
[1761541757937,0.15183445,1147.8,1145.2,0.55255133]
[1761541758137,0.15183445,1147.8,1144.8,0.74302723]
[1761541758337,0.15183445,1147.8,1144.9,0.55261227]
[1761541758536,0.15183445,1147.8,1145.0,0.55261227]
[1761541758740,0.15183445,1147.8,1145.1,0.55261227]
[1761541758940,0.15183445,1147.8,1144.8,0.74302723]
[1761541759139,0.15183445,1147.8,1144.9,0.55280442]
[1761541759339,0.15183445,1147.8,1145.0,0.55280442]
[1761541759537,0.15183445,1147.8,1145.1,0.55280442]
[1761541763249,0.15183445,1147.8,1145.1,0.5538914]
[1761541763451,0.15183445,1147.8,1145.2,0.5538914]
[1761541763651,0.15183445,1147.8,1145.0,1.24]
[1761541763954,0.15183445,1147.8,1145.1,0.55413978]
[1761541764148,0.15183445,1147.8,1145.2,0.55413978]
[1761541764353,0.15183445,1147.8,1145.0,1.24]
[1761541764545,0.15183445,1147.8,1145.1,0.55444577]
[1761541764850,0.15183445,1147.8,1145.2,0.55444577]
[1761541765145,0.15183445,1147.8,1145.3,0.55443588]
[1761541765350,0.15183445,1147.8,1145.0,1.24]
[1761541765550,0.15183445,1147.8,1145.1,0.55467691]
[1761541765750,0.15183445,1147.8,1145.2,0.55467691]
[1761541766052,0.15183445,1147.8,1145.3,0.55467691]
[1761541766252,0.15183445,1147.8,1145.0,1.24]
[1761541766451,0.15183445,1147.8,1145.1,0.55435894]
[1761541766646,0.15183445,1147.8,1145.0,1.24]
[1761541766647,0.15183445,1147.8,1145.2,0.55435894]
[1761541766848,0.15183445,1147.8,1145.3,0.55435894]
[1761541767047,0.15183445,1147.8,1145.0,1.24]
[1761541767247,0.15183445,1147.8,1145.1,0.55439609]
[1761541767450,0.15183445,1147.8,1145.2,0.55439609]
[1761541767648,0.15183445,1147.8,1145.3,0.55439609]
[1761541767854,0.15183445,1147.8,1145.0,1.24]
[1761541768154,0.15183445,1147.8,1145.1,0.55450566]
[1761541768454,0.15183445,1147.8,1145.2,0.55450566]
[1761541768653,0.15183445,1147.8,1145.3,0.55450566]
[1761541768847,0.15183445,1147.8,1145.0,1.24]
[1761541769049,0.15183445,1147.8,1145.1,0.55465874]
[1761541769253,0.15183445,1147.8,1145.2,0.55465874]
[1761541769552,0.15183445,1147.8,1145.3,0.55465874]
[1761541769749,0.15183445,1147.8,1145.0,1.24]
[1761541769954,0.15183445,1147.8,1145.1,0.55481946]
[1761541770248,0.15183445,1147.8,1145.2,0.55481946]
[1761541770453,0.15183445,1147.8,1145.3,0.55481946]
[1761541770652,0.15183445,1147.8,1145.0,1.24]
[1761541770851,0.15183445,1147.8,1145.1,0.55499789]
[1761541771054,0.15183445,1147.8,1145.2,0.55499789]
[1761541771350,0.15183445,1147.8,1145.3,0.55499789]
[1761541771549,0.15183445,1147.8,1145.4,0.5550955]
[1761541771754,0.15183445,1147.8,1145.5,0.5550955]
[1761541772055,0.15183445,1147.8,1145.6,0.5550955]
[1761541772253,0.15183445,1147.8,1145.0,1.24]
[1761541772254,0.15183445,1147.8,1145.7,0.55495555]
[1761541772456,0.15183445,1147.8,1145.3,0.64302723]
[1761541772663,0.15183445,1147.8,1145.4,0.55501299]
[1761541772861,0.15183445,1147.8,1145.5,0.55501299]
[1761541773056,0.15183445,1147.8,1145.6,0.55501299]
[1761541773354,0.15183445,1147.8,1145.3,0.64302723]
[1761541773355,0.15183445,1147.8,1145.7,0.55501299]
[1761541773551,0.15183445,1147.8,1145.8,0.55501299]
[1761541773852,0.15183445,1147.8,1145.3,0.64302723]
[1761541774055,0.15183445,1147.8,1145.4,0.55509238]
[1761541774257,0.15183445,1147.8,1145.5,0.55509238]
[1761541774556,0.15183445,1147.8,1145.6,0.55509238]
[1761541774857,0.15183445,1147.8,1145.7,0.55509238]
[1761541775053,0.15183445,1147.8,1145.8,0.55509238]
[1761541775257,0.15183445,1147.8,1145.3,0.64302723]
[1761541775454,0.15183445,1147.8,1145.4,0.5551939]
[1761541775653,0.15183445,1147.8,1145.5,0.5551939]
[1761541775858,0.15183445,1147.8,1145.6,0.5551939]
[1761541776157,0.15183445,1147.8,1145.3,0.64302723]
[1761541776158,0.15183445,1147.8,1145.7,0.5551939]
[1761541776356,0.15183445,1147.8,1145.8,0.5551939]
[1761541776555,0.15183445,1147.8,1145.3,0.64302723]
[1761541776755,0.15183445,1147.8,1145.4,0.55544054]
[1761541777054,0.15183445,1147.8,1145.5,0.55544054]
[1761541777254,0.15183445,1147.8,1145.6,0.55544054]
[1761541777459,0.15183445,1147.8,1145.7,0.55544054]
[1761541777657,0.15183445,1147.8,1145.8,0.55544054]
[1761541777854,0.15183445,1147.8,1145.3,0.64302723]
[1761541778057,0.15183445,1147.8,1145.4,0.55549306]
[1761541778257,0.15183445,1147.8,1145.5,0.55549306]
[1761541778458,0.15183445,1147.8,1145.6,0.55549306]
[1761541778655,0.15183445,1147.8,1145.7,0.55549306]
[1761541778856,0.15183445,1147.8,1145.8,0.55549306]
[1761541779159,0.15183445,1147.8,1145.3,0.64302723]
[1761541779360,0.15183445,1147.8,1145.4,0.55555814]
[1761541779559,0.15183445,1147.8,1145.5,0.55555814]
[1761541779859,0.15183445,1147.8,1145.6,0.55555814]
[1761541780155,0.15183445,1147.8,1145.7,0.55555814]
[1761541780460,0.15183445,1147.8,1145.8,0.55555814]
[1761541780761,0.15183445,1147.8,1145.3,0.64302723]
[1761541780961,0.15183445,1147.8,1145.4,0.55560531]
[1761541781157,0.15183445,1147.8,1145.5,0.55560531]
[1761541781356,0.15183445,1147.8,1145.6,0.55560531]
[1761541781560,0.15183445,1147.8,1145.7,0.55560531]
[1761541781760,0.15183445,1147.8,1145.8,0.55560531]
[1761541781963,0.15183445,1147.8,1145.3,0.64302723]
[1761541782162,0.15183445,1147.8,1145.4,0.55559035]
[1761541782362,0.15183445,1147.8,1145.5,0.55559035]
[1761541782561,0.15183445,1147.8,1145.6,0.55559035]
[1761541782760,0.15183445,1147.8,1145.7,0.55559035]
[1761541782962,0.15183445,1147.8,1145.8,0.55559035]
[1761541783162,0.15183445,1147.8,1145.3,0.64302723]
[1761541783362,0.15183445,1147.8,1145.4,0.55558955]
[1761541783662,0.15183445,1147.8,1145.5,0.55558955]
[1761541783861,0.15183445,1147.8,1145.6,0.55558955]
[1761541784061,0.15183445,1147.8,1145.7,0.55558955]
[1761541784261,0.15183445,1147.8,1145.8,0.55558955]
[1761541784463,0.15183445,1147.8,1145.3,0.64302723]
[1761541784758,0.15183445,1147.8,1145.4,0.55556732]
[1761541784962,0.15183445,1147.8,1145.5,0.55556732]
[1761541785160,0.15183445,1147.8,1145.6,0.55556732]
[1761541785364,0.15183445,1147.8,1145.7,0.55556732]
[1761541785559,0.15183445,1147.8,1145.8,0.55556732]
[1761541785765,2.15100723,1148.4,1145.4,0.64302723]
[1761541785965,2.15100723,1148.4,1145.5,0.55555594]
[1761541786165,0.15177849,1147.9,1145.6,0.55555594]
[1761541786364,0.15177849,1147.9,1145.7,0.55555594]
[1761541786564,0.15177849,1147.9,1145.8,0.55555594]
[1761541786764,0.15177849,1147.9,1145.9,0.55555594]
[1761541786961,0.15177849,1147.9,1145.5,0.64302723]
[1761541787161,0.15177849,1147.9,1145.6,0.55551297]
[1761541787365,0.15177849,1147.9,1145.7,0.55551297]
[1761541787662,0.15177849,1147.9,1145.8,0.55551297]
[1761541787860,0.15177849,1147.9,1145.5,0.64302723]
[1761541788059,0.15177849,1147.9,1145.6,0.55549561]
[1761541788273,0.15177849,1147.9,1145.7,0.55549561]
[1761541788461,0.15177849,1147.9,1145.8,0.55549561]
[1761541788764,0.15177849,1147.9,1145.5,0.64302723]
[1761541788963,2.30278572,1147.9,1145.6,0.55549648]
[1761541789164,2.30278572,1147.9,1145.7,0.55549648]
[1761541789364,2.30278572,1147.9,1145.8,0.55549648]
[1761541789564,2.30278572,1147.9,1145.5,0.64302723]
[1761541789764,2.30278572,1147.9,1145.6,0.55547779]
[1761541790067,0.15177849,1147.9,1145.7,0.55547779]
[1761541790268,0.15177849,1147.9,1145.8,0.55547779]